[Event "Early-Titled-Tuesday-Blitz-February-06-2024"]
[Site "Chess.com"]
[Date "2024.02.06"]
[Round "11"]
[White "NewYearGirl"]
[Black "MasterKroket"]
[Result "0-1"]
[WhiteElo "2357"]
[BlackElo "2489"]
[TimeControl "180+1"]
[EndTime "10:07:52 PST"]
[Termination "MasterKroket won by resignation"]

1. e4 {[%clk 0:03:00.9]} 1... e5 {[%clk 0:02:59.6]} 2. Nf3 {[%clk 0:03:00.9]}
2... Nc6 {[%clk 0:03:00.1]} 3. Bc4 {[%clk 0:03:01.6]} 3... Bc5 {[%clk
0:02:59.4]} 4. b4 {[%clk 0:03:01.5]} 4... Bxb4 {[%clk 0:02:59.4]} 5. c3 {[%clk
0:03:02.1]} 5... Ba5 {[%clk 0:02:59.7]} 6. d4 {[%clk 0:03:02.7]} 6... exd4
{[%clk 0:03:00.1]} 7. O-O {[%clk 0:03:03.2]} 7... Nf6 {[%clk 0:02:58.4]} 8. e5
{[%clk 0:03:00]} 8... d5 {[%clk 0:02:58.7]} 9. exf6 {[%clk 0:02:54.6]} 9... dxc4
{[%clk 0:02:57.9]} 10. fxg7 {[%clk 0:02:47.2]} 10... Rg8 {[%clk 0:02:57.6]} 11.
Re1+ {[%clk 0:02:42.3]} 11... Be6 {[%clk 0:02:57.3]} 12. Bg5 {[%clk 0:02:42]}
12... Qd5 {[%clk 0:02:49.4]} 13. Qa4 {[%clk 0:02:17.9]} 13... b5 {[%clk
0:02:37.4]} 14. Qa3 {[%clk 0:02:07.9]} 14... Rxg7 {[%clk 0:02:10.8]} 15. h4
{[%clk 0:01:37.5]} 15... b4 {[%clk 0:01:45.5]} 16. Qa4 {[%clk 0:01:36.7]} 16...
bxc3 {[%clk 0:01:39.4]} 17. Re5 {[%clk 0:01:16.9]} 17... Qd7 {[%clk 0:01:38.9]}
18. Rxa5 {[%clk 0:01:12.8]} 18... Nxa5 {[%clk 0:01:39.8]} 19. Qxa5 {[%clk
0:01:13.7]} 19... Rc8 {[%clk 0:01:07.6]} 20. Nxc3 {[%clk 0:01:13.3]} 20... dxc3
{[%clk 0:01:02.7]} 21. Qxc3 {[%clk 0:01:14.2]} 21... Rg8 {[%clk 0:00:52.2]} 22.
Re1 {[%clk 0:01:11.5]} 22... h6 {[%clk 0:00:39.4]} 23. Bxh6 {[%clk 0:01:00]}
23... Qd3 {[%clk 0:00:39.9]} 24. Qf6 {[%clk 0:00:57.9]} 24... Qg6 {[%clk
0:00:39.8]} 25. Bg5 {[%clk 0:00:51.3]} 25... Qxf6 {[%clk 0:00:39.7]} 26. Bxf6
{[%clk 0:00:52.2]} 26... Rb8 {[%clk 0:00:38]} 27. Nd4 {[%clk 0:00:45.7]} 27...
Kd7 {[%clk 0:00:37.1]} 28. f4 {[%clk 0:00:44]} 28... Kd6 {[%clk 0:00:34.1]} 29.
f5 {[%clk 0:00:41.7]} 29... Bd5 {[%clk 0:00:34.3]} 30. Be7+ {[%clk 0:00:35.3]}
30... Kd7 {[%clk 0:00:34.6]} 31. f6 {[%clk 0:00:35.4]} 31... Rxg2+ {[%clk
0:00:34.4]} 32. Kf1 {[%clk 0:00:36.1]} 32... Rbb2 {[%clk 0:00:32.6]} 33. Ne2
{[%clk 0:00:33.7]} 33... c3 {[%clk 0:00:23.5]} 34. Ba3 {[%clk 0:00:32.1]} 34...
Bc4 {[%clk 0:00:14.2]} 35. Kxg2 {[%clk 0:00:29.2]} 35... Rxe2+ {[%clk
0:00:10.1]} 36. Rxe2 {[%clk 0:00:29.5]} 36... Bxe2 {[%clk 0:00:11]} 37. Kf2
{[%clk 0:00:28.8]} 37... Bh5 {[%clk 0:00:09.9]} 38. Ke3 {[%clk 0:00:27.5]} 38...
Bg6 {[%clk 0:00:09.9]} 39. Kd4 {[%clk 0:00:26.5]} 39... c2 {[%clk 0:00:09.6]}
40. Kc3 {[%clk 0:00:26.7]} 40... Ke6 {[%clk 0:00:09.4]} 41. h5 {[%clk
0:00:26.9]} 41... Bh7 {[%clk 0:00:09.2]} 42. Kd2 {[%clk 0:00:22.2]} 42... Kxf6
{[%clk 0:00:08.7]} 43. Bc5 {[%clk 0:00:23]} 43... Kg5 {[%clk 0:00:08.1]} 44.
Bxa7 {[%clk 0:00:22.2]} 44... Kxh5 {[%clk 0:00:07.7]} 45. a4 {[%clk 0:00:21.3]}
45... Kg4 {[%clk 0:00:08.1]} 46. a5 {[%clk 0:00:21.6]} 46... Kf3 {[%clk
0:00:08.8]} 47. Bd4 {[%clk 0:00:20.6]} 47... Be4 {[%clk 0:00:08.6]} 48. Bf6
{[%clk 0:00:20.4]} 48... Kg4 {[%clk 0:00:07.2]} 49. a6 {[%clk 0:00:20.6]} 49...
Kf5 {[%clk 0:00:07.7]} 50. Bd8 {[%clk 0:00:20.1]} 50... c5 {[%clk 0:00:06.2]}
51. Bb6 {[%clk 0:00:19.6]} 51... c4 {[%clk 0:00:05.9]} 52. Bd4 {[%clk
0:00:20.1]} 52... Ke6 {[%clk 0:00:06]} 53. Bb2 {[%clk 0:00:19.9]} 53... f5
{[%clk 0:00:06.2]} 54. Kc3 {[%clk 0:00:20.3]} 54... Bd5 {[%clk 0:00:05]} 55. Bc1
{[%clk 0:00:19.9]} 55... Ke5 {[%clk 0:00:04.8]} 56. Bd2 {[%clk 0:00:19.5]} 56...
Ke4 {[%clk 0:00:05]} 57. Bc1 {[%clk 0:00:19.3]} 57... f4 {[%clk 0:00:05.3]} 58.
Kd2 {[%clk 0:00:19.4]} 58... f3 {[%clk 0:00:05.5]} 59. Ke1 {[%clk 0:00:19.8]}
59... Kd3 {[%clk 0:00:04.5]} 60. a7 {[%clk 0:00:20.1]} 60... Kc3 {[%clk
0:00:04.2]} 61. Kf2 {[%clk 0:00:20.6]} 61... Kb3 {[%clk 0:00:03.9]} 62. Ke3
{[%clk 0:00:19.3]} 62... Kc3 {[%clk 0:00:04.1]} 63. Kf2 {[%clk 0:00:19.6]} 63...
Kd3 {[%clk 0:00:04.4]} 64. Ke1 {[%clk 0:00:19.9]} 64... Ba8 {[%clk 0:00:03.7]}
65. Kf2 {[%clk 0:00:20.1]} 65... c3 {[%clk 0:00:04.3]} 66. Ke1 {[%clk
0:00:20.3]} 66... Bb7 {[%clk 0:00:05]} 67. Kf2 {[%clk 0:00:20.8]} 67... Ke4
{[%clk 0:00:05.4]} 68. Ke1 {[%clk 0:00:21.1]} 68... Kd4 {[%clk 0:00:05.9]} 69.
Kf2 {[%clk 0:00:21.6]} 69... Kc4 {[%clk 0:00:06.6]} 70. Ke1 {[%clk 0:00:22.2]}
70... Kb3 {[%clk 0:00:07.3]} 71. Kf2 {[%clk 0:00:22.5]} 71... Ka2 {[%clk
0:00:07.8]} 72. Ke3 {[%clk 0:00:16.3]} 72... Kb1 {[%clk 0:00:08.1]} 73. Kd3
{[%clk 0:00:16.2]} 73... Kxc1 {[%clk 0:00:07.9]} 0-1

[Event "Early-Titled-Tuesday-Blitz-February-06-2024"]
[Site "Chess.com"]
[Date "2024.02.06"]
[Round "11"]
[White "RantomOpening"]
[Black "ploxoi"]
[Result "0-1"]
[WhiteElo "2529"]
[BlackElo "2461"]
[TimeControl "180+1"]
[EndTime "10:07:59 PST"]
[Termination "ploxoi won on time"]

1. d4 {[%clk 0:03:00.8]} 1... e6 {[%clk 0:02:58.9]} 2. Nf3 {[%clk 0:03:00.4]}
2... d5 {[%clk 0:02:58.4]} 3. Bg5 {[%clk 0:03:00.6]} 3... Be7 {[%clk 0:02:58]}
4. Bxe7 {[%clk 0:02:58.8]} 4... Qxe7 {[%clk 0:02:58.9]} 5. c4 {[%clk 0:02:59.1]}
5... Nf6 {[%clk 0:02:59.1]} 6. Nbd2 {[%clk 0:02:59]} 6... O-O {[%clk 0:02:58.2]}
7. g3 {[%clk 0:02:59]} 7... c5 {[%clk 0:02:58]} 8. dxc5 {[%clk 0:02:50.1]} 8...
Qxc5 {[%clk 0:02:56.8]} 9. Bg2 {[%clk 0:02:50.6]} 9... Nc6 {[%clk 0:02:55.6]}
10. Rc1 {[%clk 0:02:50.2]} 10... Rd8 {[%clk 0:02:52.7]} 11. O-O {[%clk
0:02:48.6]} 11... e5 {[%clk 0:02:49.6]} 12. cxd5 {[%clk 0:02:47.8]} 12... Qxd5
{[%clk 0:02:50.5]} 13. Qb3 {[%clk 0:02:40.6]} 13... e4 {[%clk 0:02:25]} 14. Qxd5
{[%clk 0:02:13.8]} 14... Rxd5 {[%clk 0:02:23.4]} 15. Nb3 {[%clk 0:01:59.1]}
15... exf3 {[%clk 0:02:22.3]} 16. Bxf3 {[%clk 0:01:59.7]} 16... Rd8 {[%clk
0:02:21.6]} 17. Bxc6 {[%clk 0:01:58]} 17... bxc6 {[%clk 0:02:22.5]} 18. Rxc6
{[%clk 0:01:58.8]} 18... Be6 {[%clk 0:02:22]} 19. Nc5 {[%clk 0:01:52.2]} 19...
Bxa2 {[%clk 0:02:19.4]} 20. Ra1 {[%clk 0:01:51.6]} 20... Bd5 {[%clk 0:02:17.6]}
21. Rca6 {[%clk 0:01:51.5]} 21... Rdc8 {[%clk 0:02:13.2]} 22. b4 {[%clk
0:01:47.8]} 22... Rab8 {[%clk 0:02:03.9]} 23. Nd3 {[%clk 0:01:29]} 23... Bc4
{[%clk 0:01:52.3]} 24. Rxa7 {[%clk 0:01:28.3]} 24... Bxd3 {[%clk 0:01:52.6]} 25.
exd3 {[%clk 0:01:28.5]} 25... Rxb4 {[%clk 0:01:53.2]} 26. Ra8 {[%clk 0:01:28.8]}
26... Rbb8 {[%clk 0:01:53.1]} 27. Rxb8 {[%clk 0:01:27.3]} 27... Rxb8 {[%clk
0:01:54]} 28. Ra2 {[%clk 0:01:25.2]} 28... Rd8 {[%clk 0:01:52.8]} 29. Rd2 {[%clk
0:01:23.3]} 29... Ng4 {[%clk 0:01:52.4]} 30. Kf1 {[%clk 0:01:20.2]} 30... Ne5
{[%clk 0:01:51.9]} 31. Ke2 {[%clk 0:01:19.6]} 31... f6 {[%clk 0:01:45.9]} 32. f4
{[%clk 0:01:17]} 32... Nc6 {[%clk 0:01:44.6]} 33. Rb2 {[%clk 0:01:15.2]} 33...
Re8+ {[%clk 0:01:38.7]} 34. Kf2 {[%clk 0:01:09.2]} 34... Nd4 {[%clk 0:01:38.7]}
35. Rb7 {[%clk 0:01:06]} 35... Re2+ {[%clk 0:01:35.1]} 36. Kg1 {[%clk
0:01:05.9]} 36... Nf3+ {[%clk 0:01:34.9]} 37. Kf1 {[%clk 0:01:05.7]} 37... Rxh2
{[%clk 0:01:34.5]} 38. Rb8+ {[%clk 0:01:02.4]} 38... Kf7 {[%clk 0:01:34.4]} 39.
f5 {[%clk 0:01:03]} 39... Ne5 {[%clk 0:01:23.2]} 40. Rc8 {[%clk 0:01:02.5]}
40... Rd2 {[%clk 0:01:22]} 41. Rc7+ {[%clk 0:01:02.4]} 41... Kf8 {[%clk
0:01:21.1]} 42. Rc8+ {[%clk 0:01:02.6]} 42... Ke7 {[%clk 0:01:21.7]} 43. Rc7+
{[%clk 0:00:59.4]} 43... Nd7 {[%clk 0:01:22.1]} 44. Rc3 {[%clk 0:00:59.6]} 44...
Kd6 {[%clk 0:01:22.4]} 45. Ra3 {[%clk 0:00:59.2]} 45... h5 {[%clk 0:01:18.9]}
46. Ra6+ {[%clk 0:00:53.9]} 46... Kd5 {[%clk 0:01:17.5]} 47. Ra7 {[%clk
0:00:53.9]} 47... Kd6 {[%clk 0:01:15]} 48. Ra6+ {[%clk 0:00:53.8]} 48... Ke5
{[%clk 0:01:13.1]} 49. Re6+ {[%clk 0:00:48.6]} 49... Kxf5 {[%clk 0:01:12.4]} 50.
Re7 {[%clk 0:00:49]} 50... Rxd3 {[%clk 0:01:08.6]} 51. Rxg7 {[%clk 0:00:49]}
51... Ne5 {[%clk 0:01:09.2]} 52. Kf2 {[%clk 0:00:48.7]} 52... Rf3+ {[%clk
0:01:06.6]} 53. Kg2 {[%clk 0:00:48.9]} 53... Ra3 {[%clk 0:01:07.5]} 54. Rh7
{[%clk 0:00:49.1]} 54... Kg5 {[%clk 0:01:06.7]} 55. Rg7+ {[%clk 0:00:48.9]}
55... Ng6 {[%clk 0:01:07.1]} 56. Kh3 {[%clk 0:00:49]} 56... h4 {[%clk
0:01:04.4]} 57. Rc7 {[%clk 0:00:49.1]} 57... Rxg3+ {[%clk 0:01:04.5]} 58. Kh2
{[%clk 0:00:49.5]} 58... Ra3 {[%clk 0:01:05]} 59. Rc2 {[%clk 0:00:49.5]} 59...
f5 {[%clk 0:01:02.9]} 60. Rg2+ {[%clk 0:00:49.6]} 60... Kh5 {[%clk 0:01:02.7]}
61. Rb2 {[%clk 0:00:50.5]} 61... Nf4 {[%clk 0:01:02.8]} 62. Rb8 {[%clk
0:00:50.1]} 62... Ra2+ {[%clk 0:01:01.6]} 63. Kh1 {[%clk 0:00:50.2]} 63... Kg4
{[%clk 0:01:01.9]} 64. Rg8+ {[%clk 0:00:50.4]} 64... Kf3 {[%clk 0:01:02.1]} 65.
Rg1 {[%clk 0:00:48.6]} 65... Rf2 {[%clk 0:00:53.2]} 66. Re1 {[%clk 0:00:42.8]}
66... Nd3 {[%clk 0:00:51.8]} 67. Rg1 {[%clk 0:00:41.2]} 67... Ke2 {[%clk
0:00:51.7]} 68. Rg8 {[%clk 0:00:33.4]} 68... f4 {[%clk 0:00:51.3]} 69. Re8+
{[%clk 0:00:30.2]} 69... Kf3 {[%clk 0:00:50.6]} 70. Rg8 {[%clk 0:00:30.3]} 70...
Rf1+ {[%clk 0:00:43.5]} 71. Kh2 {[%clk 0:00:29.5]} 71... Ne5 {[%clk 0:00:44.1]}
72. Rg2 {[%clk 0:00:01.5]} 72... Ng4+ {[%clk 0:00:43.8]} 73. Rxg4 {[%clk
0:00:01.4]} 73... Kxg4 {[%clk 0:00:44.7]} 74. Kg2 {[%clk 0:00:01.3]} 74... Ra1
{[%clk 0:00:45.6]} 75. Kh2 {[%clk 0:00:01.2]} 75... Ra2+ {[%clk 0:00:46.5]} 76.
Kg1 {[%clk 0:00:01.2]} 76... Kg3 {[%clk 0:00:47.4]} 77. Kf1 {[%clk 0:00:01.1]}
77... h3 {[%clk 0:00:48.3]} 0-1

[Event "Early-Titled-Tuesday-Blitz-February-06-2024"]
[Site "Chess.com"]
[Date "2024.02.06"]
[Round "11"]
[White "AnishOnYoutube"]
[Black "yosephtaher"]
[Result "0-1"]
[WhiteElo "3008"]
[BlackElo "2913"]
[TimeControl "180+1"]
[EndTime "10:08:01 PST"]
[Termination "yosephtaher won by resignation"]

1. d4 {[%clk 0:02:58.9]} 1... Nf6 {[%clk 0:02:58.6]} 2. c4 {[%clk 0:02:59.1]}
2... e6 {[%clk 0:02:58.9]} 3. Nf3 {[%clk 0:02:59.7]} 3... c5 {[%clk 0:02:59.2]}
4. e3 {[%clk 0:02:59.4]} 4... d5 {[%clk 0:02:58.4]} 5. Nc3 {[%clk 0:02:59.3]}
5... Nc6 {[%clk 0:02:58.8]} 6. cxd5 {[%clk 0:02:59]} 6... exd5 {[%clk
0:02:57.3]} 7. Bb5 {[%clk 0:02:59.7]} 7... Bd6 {[%clk 0:02:56.6]} 8. dxc5 {[%clk
0:02:58.7]} 8... Bxc5 {[%clk 0:02:57.1]} 9. O-O {[%clk 0:02:59.4]} 9... O-O
{[%clk 0:02:56.5]} 10. b3 {[%clk 0:02:58]} 10... d4 {[%clk 0:02:52.9]} 11. Na4
{[%clk 0:02:57.2]} 11... Qd5 {[%clk 0:02:44.2]} 12. Bc4 {[%clk 0:02:50.6]} 12...
Qd6 {[%clk 0:02:41.8]} 13. Nxc5 {[%clk 0:02:50.8]} 13... Qxc5 {[%clk 0:02:42.1]}
14. exd4 {[%clk 0:02:50.4]} 14... Qh5 {[%clk 0:02:42.2]} 15. Ne5 {[%clk
0:02:38.6]} 15... Ng4 {[%clk 0:02:29]} 16. h3 {[%clk 0:02:32.9]} 16... Ncxe5
{[%clk 0:02:27.9]} 17. hxg4 {[%clk 0:02:00.6]} 17... Nxg4 {[%clk 0:02:07.5]} 18.
Bf4 {[%clk 0:02:00.4]} 18... Be6 {[%clk 0:02:03.2]} 19. Qf3 {[%clk 0:01:56.2]}
19... Rad8 {[%clk 0:02:00.7]} 20. Rad1 {[%clk 0:01:36.8]} 20... Bd5 {[%clk
0:01:59.7]} 21. Qg3 {[%clk 0:01:37.3]} 21... Rd7 {[%clk 0:01:22.2]} 22. Rfe1
{[%clk 0:01:23.6]} 22... Nf6 {[%clk 0:01:16]} 23. Be5 {[%clk 0:01:17.1]} 23...
Qh6 {[%clk 0:01:13.1]} 24. Bb5 {[%clk 0:01:12.6]} 24... Bc6 {[%clk 0:01:11.6]}
25. Bxc6 {[%clk 0:01:06.5]} 25... bxc6 {[%clk 0:01:12.5]} 26. Rc1 {[%clk
0:01:07.1]} 26... Nh5 {[%clk 0:01:04.8]} 27. Qg4 {[%clk 0:01:03.2]} 27... Re7
{[%clk 0:00:53.7]} 28. Red1 {[%clk 0:00:42]} 28... Rfe8 {[%clk 0:00:52.1]} 29.
Qf3 {[%clk 0:00:41.8]} 29... Re6 {[%clk 0:00:50.1]} 30. Rc5 {[%clk 0:00:41.3]}
30... f6 {[%clk 0:00:47.4]} 31. g4 {[%clk 0:00:27.8]} 31... fxe5 {[%clk
0:00:45.3]} 32. gxh5 {[%clk 0:00:28.3]} 32... Rf6 {[%clk 0:00:37.9]} 33. Qh3
{[%clk 0:00:18]} 33... Qg5+ {[%clk 0:00:34.5]} 34. Kh1 {[%clk 0:00:11]} 34...
Rf4 {[%clk 0:00:30.7]} 35. Rg1 {[%clk 0:00:11]} 35... Qf6 {[%clk 0:00:26.9]} 36.
dxe5 {[%clk 0:00:11]} 36... Qe7 {[%clk 0:00:24.5]} 37. Rc4 {[%clk 0:00:11.6]}
37... Rxc4 {[%clk 0:00:24.2]} 38. bxc4 {[%clk 0:00:11.9]} 38... Qxe5 {[%clk
0:00:24.9]} 39. h6 {[%clk 0:00:11.1]} 39... g6 {[%clk 0:00:18.4]} 40. Qg4 {[%clk
0:00:11.7]} 40... Qe4+ {[%clk 0:00:16.7]} 41. Kh2 {[%clk 0:00:11.7]} 41... Qe5+
{[%clk 0:00:11.5]} 42. Kh3 {[%clk 0:00:10.6]} 42... Rf8 {[%clk 0:00:11.1]} 43.
Rg3 {[%clk 0:00:08.7]} 43... Rxf2 {[%clk 0:00:06.4]} 44. Qc8+ {[%clk 0:00:08.8]}
44... Rf8 {[%clk 0:00:06.7]} 45. Qxc6 {[%clk 0:00:09.3]} 45... Qh5+ {[%clk
0:00:06.2]} 46. Kg2 {[%clk 0:00:09.9]} 46... Qe2+ {[%clk 0:00:06.9]} 47. Kh3
{[%clk 0:00:10.4]} 47... Qf1+ {[%clk 0:00:07]} 48. Qg2 {[%clk 0:00:07.7]} 48...
Qf5+ {[%clk 0:00:07.2]} 49. Kh2 {[%clk 0:00:07.3]} 49... Qf4 {[%clk 0:00:05.7]}
50. Qd5+ {[%clk 0:00:07.5]} 50... Kh8 {[%clk 0:00:05.3]} 51. Kh3 {[%clk
0:00:07.6]} 51... Qxh6+ {[%clk 0:00:05.5]} 52. Kg2 {[%clk 0:00:07.6]} 52... Qf4
{[%clk 0:00:05.5]} 53. c5 {[%clk 0:00:06.9]} 53... Qf1+ {[%clk 0:00:05.7]} 54.
Kh2 {[%clk 0:00:07.5]} 54... Rf2+ {[%clk 0:00:06.2]} 55. Rg2 {[%clk 0:00:08.1]}
55... Rxg2+ {[%clk 0:00:06]} 56. Qxg2 {[%clk 0:00:09]} 56... Qf4+ {[%clk
0:00:05.3]} 57. Qg3 {[%clk 0:00:08.4]} 57... Qd2+ {[%clk 0:00:05.6]} 58. Kh3
{[%clk 0:00:09]} 58... Qd7+ {[%clk 0:00:05.7]} 59. Kh2 {[%clk 0:00:09.4]} 59...
Kg7 {[%clk 0:00:04]} 60. Qe5+ {[%clk 0:00:08.7]} 60... Kf7 {[%clk 0:00:04.4]}
61. Kg3 {[%clk 0:00:06.5]} 61... Qd3+ {[%clk 0:00:04.3]} 62. Kf4 {[%clk
0:00:06.6]} 62... Qf5+ {[%clk 0:00:02.9]} 63. Qxf5+ {[%clk 0:00:06.9]} 63...
gxf5 {[%clk 0:00:03.8]} 64. Kxf5 {[%clk 0:00:06.3]} 64... Ke7 {[%clk 0:00:04.4]}
65. Kg5 {[%clk 0:00:05.6]} 65... Kd7 {[%clk 0:00:05.1]} 66. Kh6 {[%clk
0:00:06.3]} 66... Kc6 {[%clk 0:00:06]} 67. Kxh7 {[%clk 0:00:07.1]} 67... Kxc5
{[%clk 0:00:06.9]} 68. Kg6 {[%clk 0:00:07.8]} 68... Kb4 {[%clk 0:00:07.7]} 69.
Kf5 {[%clk 0:00:06.7]} 69... Ka3 {[%clk 0:00:08.6]} 70. Ke4 {[%clk 0:00:07.2]}
70... Kxa2 {[%clk 0:00:09.3]} 71. Kd4 {[%clk 0:00:06.6]} 71... Kb3 {[%clk
0:00:09.1]} 72. Kd3 {[%clk 0:00:05.6]} 72... a5 {[%clk 0:00:10]} 73. Kd2 {[%clk
0:00:06.2]} 73... Kb2 {[%clk 0:00:10.6]} 0-1

[Event "Early-Titled-Tuesday-Blitz-February-06-2024"]
[Site "Chess.com"]
[Date "2024.02.06"]
[Round "11"]
[White "PepeCuenca"]
[Black "Nf3c5"]
[Result "1-0"]
[WhiteElo "2695"]
[BlackElo "2549"]
[TimeControl "180+1"]
[EndTime "10:08:01 PST"]
[Termination "PepeCuenca won by resignation"]

1. d4 {[%clk 0:01:55]} 1... Nf6 {[%clk 0:02:53.9]} 2. c4 {[%clk 0:01:51.1]} 2...
e6 {[%clk 0:02:53.4]} 3. Nf3 {[%clk 0:01:50.2]} 3... c5 {[%clk 0:02:53.3]} 4. d5
{[%clk 0:01:46.6]} 4... exd5 {[%clk 0:02:53.4]} 5. cxd5 {[%clk 0:01:47.2]} 5...
d6 {[%clk 0:02:54.1]} 6. Nc3 {[%clk 0:01:47.1]} 6... g6 {[%clk 0:02:54.7]} 7.
Bf4 {[%clk 0:01:47.7]} 7... a6 {[%clk 0:02:52.5]} 8. a4 {[%clk 0:01:47.7]} 8...
Bg7 {[%clk 0:02:36]} 9. h3 {[%clk 0:01:47.2]} 9... O-O {[%clk 0:02:32.2]} 10. e3
{[%clk 0:01:47.5]} 10... Qe7 {[%clk 0:02:07.3]} 11. Nd2 {[%clk 0:01:47.4]} 11...
Nbd7 {[%clk 0:02:04.4]} 12. Be2 {[%clk 0:01:44.4]} 12... Ne5 {[%clk 0:02:02.7]}
13. O-O {[%clk 0:01:39.1]} 13... Ne8 {[%clk 0:02:02.3]} 14. Bh2 {[%clk
0:01:31.3]} 14... f5 {[%clk 0:02:01.5]} 15. Re1 {[%clk 0:01:30.3]} 15... Rb8
{[%clk 0:02:00.7]} 16. a5 {[%clk 0:01:29]} 16... Bd7 {[%clk 0:02:00.3]} 17. Qb3
{[%clk 0:01:27.9]} 17... Qd8 {[%clk 0:01:45.3]} 18. f4 {[%clk 0:01:23.5]} 18...
Nf7 {[%clk 0:01:43.7]} 19. Nc4 {[%clk 0:01:23.2]} 19... Nc7 {[%clk 0:01:20.3]}
20. Nb6 {[%clk 0:01:13.1]} 20... Na8 {[%clk 0:01:14.8]} 21. Nc4 {[%clk 0:00:53]}
21... Nc7 {[%clk 0:01:12.5]} 22. Bf3 {[%clk 0:00:47.7]} 22... Bb5 {[%clk
0:01:01.4]} 23. Nb6 {[%clk 0:00:40.5]} 23... Re8 {[%clk 0:00:52.7]} 24. Kh1
{[%clk 0:00:37.4]} 24... Bd7 {[%clk 0:00:38.6]} 25. e4 {[%clk 0:00:35.7]} 25...
fxe4 {[%clk 0:00:33.9]} 26. Bxe4 {[%clk 0:00:32.6]} 26... Nb5 {[%clk 0:00:33.7]}
27. Nxb5 {[%clk 0:00:25.9]} 27... Bxb5 {[%clk 0:00:29]} 28. Qc2 {[%clk
0:00:22.8]} 28... Qh4 {[%clk 0:00:26.8]} 29. Qd2 {[%clk 0:00:13.9]} 29... Re7
{[%clk 0:00:21.7]} 30. Bf3 {[%clk 0:00:13.7]} 30... Rbe8 {[%clk 0:00:20.9]} 31.
Rxe7 {[%clk 0:00:14.2]} 31... Qxe7 {[%clk 0:00:21.5]} 32. Bg3 {[%clk 0:00:11.8]}
32... Qe3 {[%clk 0:00:18.1]} 33. Rd1 {[%clk 0:00:09.7]} 33... Qxd2 {[%clk
0:00:18.1]} 34. Rxd2 {[%clk 0:00:10.6]} 34... Bd4 {[%clk 0:00:17.5]} 35. f5
{[%clk 0:00:08.6]} 35... gxf5 {[%clk 0:00:17.4]} 36. Bh5 {[%clk 0:00:08.1]}
36... Be5 {[%clk 0:00:17.8]} 37. Bxe5 {[%clk 0:00:06.3]} 37... Rxe5 {[%clk
0:00:17.4]} 38. Nc8 {[%clk 0:00:06]} 38... Re1+ {[%clk 0:00:14.3]} 39. Kh2
{[%clk 0:00:06.2]} 39... Re5 {[%clk 0:00:10.9]} 40. Bxf7+ {[%clk 0:00:06.1]}
40... Kxf7 {[%clk 0:00:11.8]} 41. Nxd6+ {[%clk 0:00:06.4]} 41... Ke7 {[%clk
0:00:12.3]} 42. Nxb7 {[%clk 0:00:07]} 42... c4 {[%clk 0:00:11]} 43. Nc5 {[%clk
0:00:06.6]} 43... Kd6 {[%clk 0:00:10.8]} 44. Nb7+ {[%clk 0:00:04.4]} 44... Kc7
{[%clk 0:00:09.3]} 45. d6+ {[%clk 0:00:04.7]} 45... Kxb7 {[%clk 0:00:09]} 46. d7
{[%clk 0:00:05.3]} 46... Bxd7 {[%clk 0:00:09.4]} 47. Rxd7+ {[%clk 0:00:06]}
47... Kc6 {[%clk 0:00:09.8]} 48. Rxh7 {[%clk 0:00:06.2]} 48... Re2 {[%clk
0:00:10]} 49. Rh5 {[%clk 0:00:04.5]} 49... Rxb2 {[%clk 0:00:08]} 50. Rxf5 {[%clk
0:00:04.9]} 50... Rb5 {[%clk 0:00:08.7]} 51. Rf3 {[%clk 0:00:04.6]} 51... Kc5
{[%clk 0:00:08]} 52. g4 {[%clk 0:00:04]} 52... Kb4 {[%clk 0:00:08.2]} 53. h4
{[%clk 0:00:04.4]} 53... c3 {[%clk 0:00:08.7]} 54. h5 {[%clk 0:00:03.9]} 54...
c2 {[%clk 0:00:09.2]} 55. Rf1 {[%clk 0:00:04.3]} 55... Kc3 {[%clk 0:00:09.9]}
56. Rc1 {[%clk 0:00:04.5]} 56... Rb1 {[%clk 0:00:09.3]} 57. Rxc2+ {[%clk
0:00:04.8]} 57... Kxc2 {[%clk 0:00:10.2]} 58. Kg3 {[%clk 0:00:05.4]} 58... Rb5
{[%clk 0:00:10]} 59. Kf4 {[%clk 0:00:05.2]} 59... Rxa5 {[%clk 0:00:10.4]} 60. g5
{[%clk 0:00:05.5]} 60... Ra1 {[%clk 0:00:10.8]} 61. h6 {[%clk 0:00:05.1]} 61...
Rf1+ {[%clk 0:00:11.7]} 62. Ke5 {[%clk 0:00:05]} 62... a5 {[%clk 0:00:12.6]} 63.
h7 {[%clk 0:00:03.9]} 63... Rh1 {[%clk 0:00:12.9]} 64. g6 {[%clk 0:00:04.3]}
64... a4 {[%clk 0:00:13.6]} 65. g7 {[%clk 0:00:04.3]} 65... Rh5+ {[%clk
0:00:12.3]} 66. Kf6 {[%clk 0:00:03.9]} 66... Rh6+ {[%clk 0:00:12.4]} 67. Kg5
{[%clk 0:00:04]} 67... Rxh7 {[%clk 0:00:12.2]} 68. g8=Q {[%clk 0:00:04.6]} 68...
Rc7 {[%clk 0:00:12.2]} 69. Qa2+ {[%clk 0:00:03.9]} 69... Kc3 {[%clk 0:00:12.3]}
70. Qa3+ {[%clk 0:00:04.1]} 70... Kc4 {[%clk 0:00:11.2]} 71. Qc1+ {[%clk
0:00:04]} 71... Kb5 {[%clk 0:00:11.3]} 72. Qxc7 {[%clk 0:00:04.9]} 72... a3
{[%clk 0:00:11.8]} 73. Qc2 {[%clk 0:00:05.1]} 1-0